bitfinex/quotes_ETHUSD_20250804
["timestamp","ask_amount","ask_price","bid_price","bid_amount"]
[1754320725599,19.55353162,3650.7,3650.2,0.002]
[1754320727402,22.41474848,3650.7,3650.2,0.002]
[1754320728478,22.41474848,3650.7,3650.2,2.74156342]
[1754320728688,22.41474848,3650.7,3650.2,0.002]
[1754320729016,25.15394918,3650.7,3650.2,0.002]
[1754320729373,25.70394918,3650.7,3650.2,0.002]
[1754320729575,4.645,3650.3,3650.2,0.002]
[1754320729880,37.70322932,3650.3,3650.2,0.002]
[1754320730182,39.89992932,3650.3,3650.2,0.002]
[1754320732689,27.80863632,3650.3,3650.2,0.002]
[1754320732875,39.89992932,3650.3,3650.2,0.002]
[1754320733612,40.44992932,3650.3,3650.2,0.002]
[1754320734392,43.914912,3650.3,3650.2,0.002]
[1754320736010,40.44992932,3650.3,3650.2,0.002]
[1754320736210,43.18943018,3650.3,3650.2,0.002]
[1754320737622,43.55490964,3650.3,3650.2,0.002]
[1754320738492,40.81540878,3650.3,3650.2,0.002]
[1754320739024,43.55490964,3650.3,3650.2,0.002]
[1754320739212,40.81540878,3650.3,3650.2,0.002]
[1754320739406,43.55490964,3650.3,3650.2,0.002]
[1754320741661,43.91416536,3650.3,3650.2,0.002]
[1754320741944,43.91416536,3650.3,3649.5,0.002]
[1754320741945,7.9350263,3649.6,3649.5,0.002]
[1754320742118,32.98922522,3649.6,3649.5,0.002]
[1754320742448,47.17125927,3649.6,3649.5,0.002]
[1754320743012,50.03247613,3649.6,3649.5,0.002]
[1754320743208,50.03247613,3649.6,3648.6,0.002]
[1754320743209,2.195,3649.0,3648.6,0.002]
[1754320743408,2.195,3648.7,3648.6,0.002]
[1754320743609,18.75489993,3648.7,3648.6,0.002]
[1754320743954,23.74382603,3648.7,3648.6,0.002]
[1754320744312,26.95252819,3648.7,3648.6,0.002]
[1754320744507,27.08950567,3648.7,3648.6,0.002]
[1754320745157,27.08950567,3648.7,3647.6,0.002]
[1754320745158,21.02133446,3648.4,3647.6,0.002]
[1754320745447,2.195,3647.7,3647.6,0.002]
[1754320745743,28.084293,3647.7,3647.6,0.002]
[1754320746316,29.706993,3647.7,3647.6,0.002]
[1754320746519,13.798,3647.7,3647.6,0.002]
[1754320746734,25.889293,3647.7,3647.6,0.4343]
[1754320747067,25.889293,3647.7,3647.6,3.17582867]
[1754320747726,21.674293,3647.7,3647.6,3.17582867]
[1754320748063,25.889293,3647.7,3647.6,3.17582867]
[1754320749147,25.889293,3647.7,3647.6,0.4343]
[1754320749334,30.32603708,3647.7,3647.6,0.002]
[1754320749534,33.53549059,3647.7,3647.6,0.002]
[1754320749735,33.06749059,3647.7,3647.6,0.002]
[1754320749979,35.92870745,3647.7,3647.6,0.002]
[1754320750272,35.92870745,3647.7,3646.4,2.74241164]
[1754320750273,2.74199177,3647.0,3646.4,2.74241164]
[1754320750491,0.1368,3646.4,3646.3,0.4323]
[1754320750786,15.091293,3646.3,3645.9,0.4343]
[1754320751088,19.307293,3646.2,3646.1,2.74265653]
[1754320751289,19.307293,3646.2,3646.1,3.17495653]
[1754320751435,19.307293,3646.2,3646.1,3.77785653]
[1754320751640,7.216,3646.2,3646.1,3.77785653]
[1754320752558,3.0,3646.2,3646.1,3.77785653]
[1754320752888,9.44421686,3647.7,3646.2,2.74258131]
[1754320753182,3.0,3647.4,3646.2,1.0352]
[1754320753334,3.0,3647.2,3646.8,2.7420868]
[1754320753534,3.0,3647.0,3646.8,2.7420868]
[1754320753748,0.1368,3646.8,3646.4,2.7423764]
[1754320753954,3.0,3646.6,3646.2,0.4323]
[1754320754149,3.0,3646.4,3646.0,2.74272215]
[1754320754348,3.34693454,3646.8,3646.1,2.7426004]
[1754320754349,17.929993,3646.3,3646.1,2.7426004]
[1754320754552,19.307293,3646.2,3645.9,0.002]
[1754320754756,12.091293,3646.1,3645.9,0.002]
[1754320755000,15.091293,3646.1,3646.0,3.17502657]
[1754320755299,19.307293,3646.1,3646.0,3.17502657]
[1754320755609,3.0,3646.0,3645.9,0.002]
[1754320755888,15.228093,3646.0,3645.9,0.002]
[1754320756095,16.850793,3646.0,3645.9,0.002]
[1754320756305,15.228093,3646.0,3645.9,0.002]
[1754320756467,17.2170191,3646.0,3645.9,0.002]
[1754320756666,15.228093,3646.0,3645.9,2.74480698]
[1754320756902,15.228093,3646.0,3645.9,0.002]
[1754320757279,15.091293,3646.0,3645.9,2.74480698]
[1754320757524,12.091293,3646.0,3645.9,0.002]
[1754320757730,13.713993,3646.0,3645.9,0.002]
[1754320757906,16.713993,3646.0,3645.9,0.002]
[1754320758228,15.091293,3646.0,3645.9,2.74480698]
[1754320758369,19.308293,3646.0,3645.9,3.17710698]
[1754320758877,7.217,3646.0,3645.9,3.17710698]
[1754320759087,7.217,3646.0,3645.9,2.74480698]
[1754320759480,19.308293,3646.0,3645.9,2.74480698]
[1754320760091,19.308293,3646.0,3645.9,3.17710698]
[1754320760498,19.308293,3646.0,3645.9,2.74480698]
[1754320761349,20.953293,3646.0,3645.9,2.74480698]
[1754320761551,15.091293,3646.0,3645.9,2.74480698]
[1754320761700,19.308293,3646.0,3645.9,3.17710698]
[1754320763822,19.308293,3646.0,3645.9,2.74480698]
[1754320764025,7.217,3646.0,3645.9,2.74480698]
[1754320764257,8.8397,3646.0,3645.9,0.002]
[1754320764534,8.8397,3646.0,3645.9,2.74480698]
[1754320764701,20.930993,3646.0,3645.9,2.74480698]
[1754320764866,20.930993,3646.0,3645.9,0.002]
[1754320765017,8.8397,3646.0,3645.9,2.74480698]
[1754320765218,8.8397,3646.0,3645.9,0.002]
[1754320765444,20.930993,3646.0,3645.9,0.002]
[1754320766051,20.930993,3646.0,3645.9,2.74480698]
[1754320766421,21.18333635,3646.0,3645.9,0.002]
[1754320766621,21.18333635,3646.0,3645.9,2.74480698]
[1754320767142,19.56063635,3646.0,3645.9,3.17710698]
[1754320767828,15.34363635,3646.0,3645.9,2.74480698]
[1754320768034,19.56063635,3646.0,3645.9,3.17710698]
[1754320768540,19.56063635,3646.0,3645.9,2.74480698]
[1754320769113,7.46934335,3646.0,3645.9,2.74480698]
[1754320769314,7.46934335,3646.0,3645.9,3.17710698]
[1754320769817,19.56063635,3646.0,3645.9,3.17710698]
[1754320770466,15.34363635,3646.0,3645.9,3.17710698]
[1754320770633,7.46934335,3646.0,3645.9,3.78000698]
[1754320770829,7.217,3646.0,3645.9,3.78000698]
[1754320771058,2.86121686,3646.5,3645.9,3.78000698]
[1754320771263,2.86121686,3646.5,3646.4,2.74243089]
[1754320771420,22.4226184,3646.5,3646.4,2.74243089]
[1754320771615,22.4226184,3646.5,3646.4,3.21303089]
[1754320773134,18.2056184,3646.5,3646.4,3.21303089]
[1754320773347,22.4226184,3646.5,3646.4,3.21303089]
[1754320774124,18.2056184,3646.5,3646.4,3.21303089]
[1754320774325,7.3313254,3646.5,3646.4,3.81593089]
[1754320774624,10.3313254,3646.5,3646.4,3.81593089]
[1754320774860,6.1143254,3646.5,3646.4,3.81593089]
[1754320775021,0.98374994,3646.7,3646.6,2.74228048]
[1754320775222,5.20074994,3646.7,3646.6,2.74228048]
[1754320775475,0.1368,3646.9,3646.8,2.74213008]
[1754320775676,0.001,3647.6,3647.5,2.74160383]
[1754320775856,16.309293,3647.6,3647.5,2.74160383]
[1754320776176,16.309293,3647.6,3647.5,3.21220383]
[1754320778241,0.001,3648.0,3647.7,2.74139014]
[1754320778528,9.45021686,3649.0,3648.8,2.74061096]
[1754320778742,3.0,3648.7,3648.6,2.74077728]
[1754320778952,5.7755,3648.7,3648.6,2.74077728]
[1754320779152,8.7755,3648.7,3648.6,2.74077728]
[1754320782050,7.216,3648.7,3648.6,2.74077728]
[1754320782241,7.216,3648.7,3648.6,3.21137728]
[1754320783660,7.216,3648.7,3648.6,2.74077728]
[1754320784532,7.216,3648.7,3648.6,3.21137728]
[1754320784857,0.86602279,3649.1,3649.0,2.74047684]
[1754320785031,5.21682279,3649.1,3649.0,2.74047684]
[1754320785361,5.21682279,3649.1,3649.0,3.21107684]
[1754320788439,5.21682279,3649.1,3649.0,2.74047684]
[1754320788660,6.77632279,3649.1,3649.0,2.74047684]
[1754320788827,7.23442279,3649.1,3648.2,2.74103401]
[1754320789028,1.5595,3649.0,3648.9,2.74049543]
[1754320789350,1.5595,3649.0,3648.7,2.74063754]
[1754320789553,4.213,3648.9,3648.8,2.74060953]
[1754320789850,8.63371686,3648.9,3648.8,2.74060953]
[1754320790455,8.63371686,3648.9,3648.3,0.4706]
[1754320790672,31.5595,3648.8,3648.7,2.74070216]
[1754320791565,34.5595,3648.8,3648.7,2.74070216]
[1754320792239,35.0176,3648.8,3648.7,2.74070216]
[1754320792438,3.1368,3648.7,3648.6,2.74074861]
[1754320792766,38.7725,3648.7,3648.6,2.74074861]
[1754320792967,8.7725,3648.7,3648.6,2.74074861]
[1754320793129,9.2306,3648.7,3648.6,2.74074861]
[1754320793470,7.213,3648.7,3648.6,3.21134861]
[1754320794181,0.1368,3648.6,3648.5,2.74084522]
[1754320794475,4.3498,3648.6,3648.5,3.21144522]
[1754320795568,4.3498,3648.6,3648.5,2.74084522]
[1754320795749,5.9093,3648.6,3648.5,2.74084522]
[1754320795955,5.9093,3648.6,3648.5,2.73971387]
[1754320796448,1.6963,3648.6,3648.4,2.74091754]
[1754320796648,5.7715,3648.5,3648.3,2.74097543]
[1754320796840,4.212,3648.5,3648.4,2.74092752]
[1754320797477,0.1368,3648.4,3648.3,2.74098683]
[1754320797777,0.1368,3648.2,3648.0,0.002]
[1754320797964,5.0176,3648.4,3648.0,0.002]
[1754320797965,7.212,3648.1,3648.0,0.002]
[1754320798167,9.2296,3648.1,3648.0,0.002]
[1754320800814,8.7715,3648.1,3648.0,2.74322807]
[1754320800964,7.212,3648.1,3648.0,2.74322807]
[1754320801458,8.8619,3648.1,3648.0,2.74322807]
[1754320801850,7.212,3648.1,3648.0,2.74322807]
[1754320802053,3.0,3648.1,3648.0,3.21142807]
[1754320802252,7.212,3648.1,3648.0,3.21142807]
[1754320802442,3.0,3648.1,3648.0,2.74322807]
[1754320802656,4.3488,3648.1,3648.0,4.03401355]
[1754320802856,4.3488,3648.1,3648.0,4.67691355]
[1754320804594,4.3488,3648.1,3648.0,4.03401355]
[1754320805253,4.3488,3648.1,3648.0,2.74322807]
[1754320806202,0.1368,3648.1,3648.0,2.74322807]
[1754320806493,4.3488,3648.1,3648.0,2.74322807]
[1754320806697,5.9987,3648.1,3648.0,2.74322807]
[1754320806883,4.3488,3648.1,3648.0,3.21142807]
[1754320807051,4.3488,3648.1,3648.0,4.08083355]
[1754320807568,4.3488,3648.1,3648.0,3.21142807]
[1754320807762,4.3488,3648.1,3648.0,2.74322807]
[1754320808691,4.3488,3648.1,3648.0,3.21142807]
[1754320811210,0.1368,3648.1,3648.0,3.21142807]
[1754320811367,0.86702279,3649.1,3649.0,2.74047684]
[1754320811566,5.07802279,3649.1,3649.0,2.74047684]
[1754320811770,5.07802279,3649.1,3649.0,3.20867684]
[1754320811984,5.07802279,3649.1,3649.0,2.74047684]
[1754320812290,9.72792279,3649.1,3649.0,2.74047684]
[1754320812698,33.1368,3649.0,3648.4,2.74087514]
[1754320812879,33.1368,3649.0,3647.4,2.74163884]
[1754320812880,4.645,3648.8,3647.8,2.74134144]
[1754320813189,0.1368,3648.2,3648.1,2.74115292]
[1754320813393,1.645,3648.7,3648.5,2.74080452]
[1754320813596,38.8609,3648.6,3648.5,2.74080452]
[1754320813956,8.8609,3648.6,3648.5,2.74080452]
[1754320814257,3.0,3648.5,3648.0,0.002]
[1754320814461,4.6499,3648.5,3648.4,2.74092752]
[1754320814658,1.6499,3648.9,3648.8,2.74062705]
[1754320814861,0.1368,3648.6,3648.5,2.7408524]
[1754320815101,4.3478,3648.6,3648.5,2.7408524]
[1754320815295,4.3478,3648.6,3648.5,3.2090524]
[1754320815700,4.211,3648.6,3648.5,3.2090524]
[1754320815866,4.211,3648.6,3648.5,4.11924185]
[1754320816199,0.86702279,3649.1,3649.0,2.74047684]
[1754320816429,5.33336207,3649.1,3649.0,3.20867684]
[1754320817816,0.1368,3649.3,3649.2,2.74032664]
[1754320818117,1e-08,3649.5,3649.4,2.74017646]
[1754320818314,4.21000001,3649.5,3649.4,3.69937289]
[1754320818503,4.21000001,3649.5,3649.4,3.67197113]
[1754320818675,4.21000001,3649.5,3649.4,4.14017113]
[1754320819314,5.85990001,3649.5,3649.4,2.74017646]
[1754320820979,5.99670001,3649.5,3649.4,2.74017646]
[1754320821215,6.43940001,3649.5,3649.4,2.74017646]
[1754320822080,9.43940001,3649.5,3649.4,2.74017646]
[1754320823005,9.43940001,3649.5,3649.2,2.74026013]
[1754320823180,2.0926,3649.4,3649.3,2.74019502]
[1754320823377,2.0926,3649.4,3649.2,2.74031837]
[1754320823581,7.21000001,3649.5,3649.2,2.74031837]
[1754320823582,9.3016,3649.3,3649.2,2.74032664]
[1754320826623,8.8589,3649.3,3649.2,2.74032664]
[1754320826807,7.3458,3649.3,3649.2,3.20852664]
[1754320827515,8.9957,3649.3,3649.2,2.74032664]
[1754320828034,9.4384,3649.3,3649.2,2.74032664]
[1754320828232,33.0,3649.2,3648.1,0.605]
[1754320828432,3.1368,3649.0,3648.7,2.7406373]
[1754320828643,1e-08,3649.5,3648.0,0.002]
[1754320828644,3.0,3648.8,3648.6,2.74073845]
[1754320828823,7.209,3648.7,3648.6,2.74073845]
[1754320829023,8.8589,3648.7,3648.6,2.74073845]
[1754320830910,7.209,3648.7,3648.6,2.74073845]
[1754320831122,7.209,3648.7,3648.6,3.75710395]
[1754320835752,1e-08,3649.5,3649.0,2.740426]
[1754320835906,0.13680001,3649.5,3649.4,2.74017646]
[1754320836114,1e-08,3649.5,3649.4,2.76757822]
[1754320836410,1e-08,3649.5,3649.4,4.14175712]
[1754320836944,0.1368,3649.9,3649.4,4.14175712]
[1754320836945,1.5611,3650.4,3649.6,2.7400263]
[1754320837145,4.3458,3650.3,3650.2,2.73957591]
[1754320837311,4.3458,3650.3,3650.2,3.19677591]
[1754320837510,4.3458,3650.3,3650.2,2.73957591]
[1754320838048,4.3448,3650.3,3650.2,3.19677591]
[1754320838354,4.208,3650.3,3650.2,3.19677591]
[1754320839920,4.208,3650.3,3650.2,2.73957591]
[1754320841950,5.7691,3650.3,3650.2,2.73957591]
[1754320842453,4.208,3650.3,3650.2,2.73957591]
[1754320843528,4.208,3650.3,3650.2,3.62086731]
[1754320843744,4.208,3650.3,3650.2,4.07806731]
[1754320844044,6.584,3651.3,3650.5,2.73935077]
[1754320844245,1.5621,3651.7,3651.5,2.73860057]
[1754320844448,4.208,3651.6,3651.5,2.73860057]
[1754320844758,4.208,3651.6,3650.7,0.027392]
[1754320844759,5.7691,3651.6,3651.4,2.73866212]
[1754320844937,3.0,3651.5,3651.4,2.73866212]
[1754320845133,5.0297,3651.5,3651.2,2.73877166]
[1754320845360,2.0297,3651.4,3651.2,2.73877166]
[1754320845662,1.5611,3651.4,3651.3,2.73875058]
[1754320845861,8.7681,3651.4,3651.3,2.73875058]
[1754320846357,8.7681,3651.4,3651.1,2.7388768]
[1754320846554,2.0297,3651.3,3651.1,2.7388768]
[1754320846773,5.7681,3651.2,3651.0,2.73896509]
[1754320847071,0.1368,3650.5,3650.4,2.73942581]
[1754320847758,0.39225518,3650.5,3650.4,2.73942581]
[1754320848326,1.95335518,3650.5,3650.4,2.73942581]
[1754320849072,2.42195518,3650.5,3650.4,2.73942581]
[1754320849364,1.95327021,3650.5,3650.4,2.73942581]
[1754320849529,1.6979,3650.5,3650.4,2.73942581]
[1754320850031,2.1665,3650.5,3650.4,2.73942581]
[1754320850761,1.6979,3650.5,3650.4,2.73942581]
[1754320851262,0.1368,3650.5,3650.4,2.73942581]
[1754320852022,4.206,3650.6,3650.5,2.73935077]
[1754320853947,0.001,3651.6,3651.4,2.7386185]
[1754320853948,1.5621,3651.6,3651.4,2.7386185]
[1754320854151,34.46107528,3651.5,3651.4,2.7386185]
[1754320854375,9.02217528,3651.5,3651.4,2.7386185]
[1754320854741,3.1368,3651.4,3651.3,2.73871959]
[1754320854941,4.81617528,3651.4,3651.3,2.73875058]
[1754320855138,4.81617528,3651.4,3650.5,2.73935077]
[1754320855139,0.1368,3651.3,3651.1,2.73884634]
[1754320855345,5.7671,3651.2,3651.1,2.73884634]
[1754320855540,36.49077528,3651.2,3650.8,2.73906686]
[1754320855740,3.0,3651.0,3650.5,2.73935077]
[1754320855944,3.0,3651.0,3650.4,0.1368]
[1754320855945,36.49077528,3650.9,3650.4,0.1368]
[1754320856177,1.646,3650.6,3650.4,0.1368]
[1754320856480,7.52223071,3650.4,3649.8,2.73982668]
[1754320856684,3.0,3650.2,3649.8,2.7398304]
[1754320857180,5.7661,3650.1,3649.5,2.74010138]
[1754320857381,0.1368,3649.8,3649.1,0.1368]
[1754320857579,0.1368,3649.8,3648.0,2.74318863]
[1754320857580,4.205,3649.7,3649.5,2.74007275]
[1754320857777,5.7661,3649.7,3649.6,2.7400263]
[1754320858580,4.205,3649.7,3649.6,2.7400263]
[1754320861093,0.1368,3649.6,3649.5,2.74004844]
[1754320861291,0.39192963,3649.6,3649.5,2.74004844]
[1754320861505,1.99672963,3649.6,3649.5,2.74004844]
[1754320862461,1.99672963,3649.6,3649.5,3.78219618]
[1754320862462,4.59792963,3649.6,3649.5,3.78219618]
[1754320862900,4.59792963,3649.6,3649.5,3.33379618]
[1754320862901,4.59793871,3649.6,3649.5,3.33379618]
[1754320863774,4.59793871,3649.6,3649.5,3.78219618]
[1754320864277,4.3428,3649.6,3649.5,3.18844844]
[1754320864483,5.9476,3649.6,3649.5,2.74004844]
[1754320864893,6.20279814,3649.6,3648.7,0.1368]
[1754320865097,0.1368,3648.9,3648.2,0.1368]
[1754320865413,5.29569814,3649.5,3648.1,2.74115248]
[1754320865414,36.2465,3648.8,3648.3,2.74100119]
[1754320865618,35.8108,3648.7,3648.2,2.74107779]
[1754320865914,0.1368,3648.3,3648.2,2.74107779]
[1754320866056,4.3418,3648.3,3648.2,2.74107779]
[1754320866257,5.9466,3648.3,3648.2,2.74107779]
[1754320867262,6.3823,3648.3,3648.2,2.74107779]
[1754320867467,6.3823,3648.3,3648.1,2.74112757]
[1754320867779,4.3418,3648.3,3648.2,2.74107779]
[1754320868171,4.3418,3648.3,3648.0,0.002]
[1754320868172,6.2455,3648.3,3648.0,0.002]
[1754320868515,3.0,3647.9,3647.6,0.002]
[1754320868795,3.0,3647.7,3647.6,0.002]
[1754320869161,5.29486299,3647.7,3647.6,0.002]
[1754320869560,5.2948613,3647.7,3647.6,0.002]
[1754320870394,5.0405,3647.7,3647.6,0.002]
[1754320871163,35.0405,3647.7,3647.6,0.002]
[1754320871695,37.78195351,3647.7,3647.6,0.002]
[1754320872106,35.29434773,3647.7,3647.6,0.002]
[1754320872311,35.0405,3647.7,3647.6,0.002]
[1754320873206,34.6048,3647.7,3647.6,2.74352867]
[1754320873414,4.6048,3647.7,3647.6,2.74352867]
[1754320873568,8.8118,3647.7,3647.6,2.74352867]
[1754320873899,4.6048,3647.7,3647.6,2.74352867]
[1754320874119,7.207,3647.7,3647.6,2.74352867]
[1754320874562,1.6048,3648.6,3647.7,2.74145351]
[1754320874758,34.46047092,3648.5,3648.4,2.74092752]
[1754320874971,4.207,3648.5,3648.4,2.74092752]
[1754320875172,5.8118,3648.5,3648.4,2.74092752]
[1754320875565,8.8118,3648.5,3648.4,2.74092752]
[1754320875764,5.8118,3648.5,3648.4,2.74092752]
[1754320876075,8.8118,3648.5,3648.4,2.74092752]
[1754320877896,5.8118,3648.5,3648.4,2.74092752]
[1754320878082,1.6048,3648.5,3648.4,2.74092752]
[1754320878283,5.8118,3648.5,3648.4,2.74092752]
[1754320881607,0.1368,3648.4,3648.3,2.74100265]
[1754320881819,0.1368,3648.4,3648.3,3.28921172]
[1754320882178,0.1368,3648.4,3648.3,3.73761172]
[1754320882387,4.3438,3648.4,3648.3,3.73761172]
[1754320883771,4.3438,3648.4,3648.3,3.28921172]
[1754320884079,4.3438,3648.4,3648.3,2.74100265]
[1754320884080,5.9486,3648.4,3648.3,2.74100265]
[1754320884281,30.0,3648.3,3648.2,2.74103377]
[1754320884491,32.0405,3648.3,3648.2,2.74103377]
[1754320885515,1.6048,3649.2,3648.2,0.4484]
[1754320885721,30.25434079,3649.1,3649.0,2.74041157]
[1754320885925,0.25434079,3649.1,3649.0,3.18881157]
[1754320886074,4.206,3649.1,3649.0,3.78175115]
[1754320887188,0.1368,3649.5,3649.4,2.74017646]
[1754320887397,1.6048,3650.4,3650.3,2.73949124]
[1754320887618,36.06541184,3650.4,3650.3,2.73949124]
[1754320887916,39.06541184,3650.4,3650.3,2.73949124]
[1754320888210,31.85941184,3650.4,3650.3,2.73949124]
[1754320888401,36.06541184,3650.4,3650.3,2.73949124]
[1754320888615,39.06541184,3650.4,3650.3,2.73949124]
[1754320888922,3.1368,3650.3,3650.1,2.73964812]
[1754320889077,3.0,3650.1,3650.0,2.73972602]
[1754320889277,3.25461184,3650.1,3650.0,2.73972602]
[1754320890414,3.25461184,3650.1,3650.0,3.18812602]
[1754320890415,4.46061184,3650.1,3650.0,3.18812602]
[1754320890711,4.206,3650.1,3650.0,3.84443016]
[1754320892037,4.206,3650.1,3650.0,3.18812602]
[1754320893231,4.206,3650.1,3650.0,3.21552328]
[1754320893434,4.206,3650.1,3650.0,3.32492602]
[1754320893649,6.585,3650.7,3650.6,2.73927573]
[1754320893943,11.04457453,3650.7,3650.6,2.73927573]
[1754320894233,6.83957453,3650.7,3650.6,2.73927573]
[1754320894418,4.205,3650.7,3650.6,3.77124966]
[1754320894619,4.205,3650.7,3650.6,4.37894966]
[1754320895035,4.205,3650.7,3650.6,3.90804966]
[1754320895222,4.205,3650.7,3650.6,2.73927573]
[1754320895425,5.8478,3650.7,3650.6,2.73927573]
[1754320897012,4.205,3650.7,3650.6,2.73927573]
[1754320900048,5.8478,3650.7,3650.6,2.73927573]
[1754320900561,0.1368,3651.1,3651.0,2.73897562]
[1754320900719,4.3408,3651.1,3651.0,2.73897562]
[1754320901516,0.455,3651.6,3651.4,2.73867557]
[1754320901517,0.001,3651.6,3651.4,2.73867557]
[1754320901822,4.3398,3651.5,3651.4,2.73867557]
[1754320902022,4.59356854,3651.5,3651.4,2.73867557]
[1754320902247,4.59356854,3651.5,3651.4,2.73697943]
[1754320902447,5.9826,3651.5,3651.4,2.73697943]
[1754320905153,5.9826,3651.5,3651.3,2.73872154]
[1754320905154,6.4366,3651.5,3651.3,2.73872154]
[1754320905351,2.0968,3651.4,3651.3,2.73872154]
[1754320905733,2.0968,3651.4,3651.2,2.73880263]
[1754320905940,5.8448,3651.3,3651.2,2.73880263]
[1754320906124,6.2988,3651.3,3651.2,2.73880263]
[1754320907254,6.2988,3651.3,3651.0,2.73894459]
[1754320907457,2.2336,3651.2,3650.5,0.1368]
[1754320907756,1.7796,3651.2,3651.1,2.7389006]
[1754320907943,0.1368,3651.2,3651.1,3.72678919]
[1754320908121,1.7806,3651.6,3651.5,2.73860057]
[1754320908658,5.9826,3651.6,3651.5,2.73860057]
[1754320909656,6.4366,3651.6,3651.5,2.73860057]
[1754320910065,6.4366,3651.6,3650.9,0.1368]
[1754320910399,1.6428,3651.5,3651.4,2.73867557]
[1754320910971,1.89674466,3651.5,3651.4,2.73867557]
[1754320911898,2.35074466,3651.5,3651.4,2.73867557]
[1754320912120,1.89674466,3651.5,3651.4,2.73867557]
[1754320912290,1.6428,3651.5,3651.4,2.73867557]
[1754320912969,0.1368,3651.4,3651.2,2.7387812]
[1754320913305,0.1368,3651.2,3650.4,0.4401]
[1754320913515,5.8438,3651.1,3651.0,2.73897562]
[1754320913722,6.2978,3651.1,3651.0,2.73897562]
[1754320913867,0.1368,3651.0,3650.8,2.73905958]
[1754320914072,5.8438,3650.9,3650.8,2.73905958]
[1754320914272,7.05,3651.2,3651.1,2.7389006]
[1754320914527,11.251,3651.2,3651.1,3.1790006]
[1754320914891,12.8938,3651.2,3651.1,2.7389006]
[1754320915273,7.05,3651.2,3651.1,3.1790006]
[1754320915600,11.251,3651.2,3651.1,3.1790006]
[1754320915922,11.251,3651.2,3651.1,4.11592168]
[1754320917319,11.50605349,3651.2,3651.1,2.7389006]
[1754320918790,7.30505349,3651.2,3651.1,2.7389006]
[1754320918996,11.50605349,3651.2,3651.1,2.7389006]
[1754320919195,7.30505349,3651.2,3651.1,2.7389006]
[1754320919423,7.30505349,3651.2,3651.1,3.1790006]
[1754320919424,11.50605349,3651.2,3651.1,3.1790006]
[1754320921035,11.50619315,3651.2,3651.1,3.1790006]
[1754320921224,11.50619315,3651.2,3651.1,2.7389006]
[1754320921426,13.16109315,3651.2,3651.1,2.7389006]
[1754320923849,11.50619315,3651.2,3651.1,2.7389006]
[1754320924934,13.16109315,3651.2,3651.1,2.7389006]
[1754320925947,11.50619315,3651.2,3651.1,2.7389006]
[1754320926461,11.50658189,3651.2,3651.1,2.7389006]
[1754320927736,13.16148189,3651.2,3651.1,2.7389006]
[1754320929043,11.50658189,3651.2,3651.1,2.7389006]
[1754320929563,13.5944809,3651.2,3651.1,2.7389006]
[1754320930236,13.59452469,3651.2,3651.1,2.7389006]
[1754320930435,13.59352469,3651.2,3651.1,2.7389006]
[1754320930671,13.16072469,3651.2,3651.1,2.7389006]
[1754320931436,8.96072469,3651.2,3651.1,2.7389006]
[1754320931643,11.50582469,3651.2,3651.1,3.2048006]
[1754320931843,7.30582469,3651.2,3651.1,3.81286555]
[1754320932035,11.50582469,3651.2,3651.1,3.94966555]
[1754320932238,4.45582469,3651.2,3651.1,4.47116555]
[1754320932744,4.2,3651.2,3651.1,4.47116555]
[1754320933275,0.001,3651.6,3651.5,2.73860057]
[1754320933476,1.6549,3652.7,3652.0,2.73822562]
[1754320933676,0.4328,3653.1,3652.0,2.73822562]
[1754320933677,0.001,3652.8,3652.3,2.73800071]
[1754320933852,4.201,3652.4,3652.3,2.76538071]
[1754320934052,5.8559,3652.4,3652.3,2.73800071]
[1754320934253,4.201,3652.4,3652.3,2.73800071]
[1754320934880,4.201,3652.4,3652.3,3.20390071]
[1754320935044,4.201,3652.4,3652.3,3.81177947]
[1754320935783,0.001,3652.4,3652.3,3.81177947]
[1754320935951,1e-08,3652.4,3652.3,8.66907947]
[1754320936452,1e-08,3652.4,3652.3,8.14757947]
[1754320937475,1e-08,3652.4,3652.3,8.66907947]
[1754320937680,1e-08,3652.4,3652.3,8.14757947]
[1754320938043,1e-08,3652.4,3652.3,7.68167947]
[1754320938587,1e-08,3652.4,3652.3,8.14757947]
[1754320939590,1e-08,3652.4,3652.3,7.68167947]
[1754320939743,1e-08,3652.4,3652.3,0.1368]
[1754320940055,6.28570001,3652.4,3652.3,2.73800071]
[1754320940663,36.28570001,3652.4,3652.0,0.1368]
[1754320940903,36.28570001,3652.4,3649.5,16.65318538]
[1754320940904,0.1368,3652.1,3651.7,2.73844297]
[1754320941121,0.1368,3651.9,3651.3,2.87553958]
[1754320941397,0.1368,3651.6,3651.3,2.73873958]
[1754320941713,0.1368,3651.3,3650.5,0.1368]
[1754320941900,5.8529,3651.2,3651.1,2.73887765]
[1754320945602,6.2857,3651.2,3651.1,2.73887765]
[1754320945807,5.8529,3651.2,3651.1,2.73887765]
[1754320949134,6.2857,3651.2,3650.9,2.73900581]
[1754320949334,2.0877,3651.1,3650.9,2.73905032]
[1754320949498,4.198,3651.0,3650.9,2.73905032]
[1754320949700,6.2857,3651.0,3650.9,2.73905032]
[1754320952549,5.8529,3651.0,3650.9,2.73905032]
[1754320954431,6.297,3651.0,3650.8,2.73910898]
[1754320954635,31.9668,3650.9,3649.9,2.7397609]
[1754320954940,0.1368,3650.7,3650.6,2.73927573]
[1754320955103,5.8575,3650.7,3650.6,2.73927573]
[1754320956266,6.3016,3650.7,3650.6,2.73927573]
[1754320956467,6.3016,3650.7,3650.4,2.73937403]
[1754320956642,1.9668,3650.6,3650.0,2.73965791]
[1754320956842,0.1368,3650.3,3650.1,2.73959958]
[1754320957167,6.1648,3650.2,3650.1,2.73959958]
[1754320957870,5.7207,3650.2,3650.1,2.73959958]
[1754320961973,4.646,3651.1,3650.1,2.73959958]
[1754320961974,1.5227,3650.8,3650.7,2.7392007]
[1754320962170,5.7207,3650.8,3650.7,2.7392007]
[1754320963297,0.1368,3650.7,3649.9,0.1368]
[1754320963456,6.1648,3650.8,3650.2,2.7395266]
[1754320963457,34.198,3650.6,3650.2,2.7395266]
[1754320963657,35.7207,3650.5,3649.6,0.472]
[1754320963880,35.7207,3650.5,3649.3,4.198]